fUST/lending_fUST_20250429
["ID","MTS","AMOUNT","RATE_DAILY","PERIOD"]
[359336296,1745939433183,-501.85667621,0.00035616,3]
[359336297,1745939433193,-400.0,0.00035616,3]
[359336298,1745939433203,-400.0,0.00035616,3]
[359336299,1745939433213,-400.0,0.00035616,3]
[359336300,1745939433223,-159.54629284,0.00035616,3]
[359336301,1745939433233,-500.0,0.00035616,3]
[359336302,1745939433243,-400.0,0.00035616,3]
[359336303,1745939433253,-500.0,0.00035616,3]
[359336304,1745939433263,-500.0,0.00035616,3]
[359336305,1745939433273,-500.0,0.00035616,3]
[359336306,1745939433283,-500.0,0.00035616,3]
[359336307,1745939433293,-400.0,0.00035616,3]
[359336308,1745939433303,-500.0,0.00035616,3]
[359336309,1745939433313,-500.0,0.00035616,3]
[359336310,1745939433323,-500.0,0.00035616,3]
[359336311,1745939433333,-500.0,0.00035616,3]
[359336312,1745939433343,-500.0,0.00035616,3]
[359336313,1745939433354,-500.0,0.00035616,3]
[359336314,1745939433364,-151.0,0.00035616,14]
[359336315,1745939433374,-500.0,0.00035616,3]
[359336316,1745939433384,-151.0,0.00035616,14]
[359336317,1745939433394,-400.0,0.00035616,3]
[359336318,1745939433403,-151.0,0.00035616,14]
[359336319,1745939433413,-151.0,0.00035616,14]
[359336320,1745939433423,-500.0,0.00035616,3]
[359336321,1745939433433,-151.0,0.00035616,14]
[359336322,1745939433443,-400.0,0.00035616,3]
[359336323,1745939433454,-151.0,0.00035616,14]
[359336324,1745939433464,-400.0,0.00035616,3]
[359336325,1745939433473,-400.0,0.00035616,3]
[359336326,1745939433483,-242.23163187,0.00035616,3]
[359336327,1745939433493,-400.0,0.00035616,3]
[359336328,1745939433502,-400.0,0.00035616,3]
[359336329,1745939433512,-400.0,0.00035616,3]
[359336330,1745939433522,-400.0,0.00035616,3]
[359336331,1745939433531,-400.0,0.00035616,3]
[359336332,1745939433541,-400.0,0.00035616,3]
[359336333,1745939433551,-500.0,0.00035616,3]
[359336334,1745939433560,-500.0,0.00035616,3]
[359336335,1745939433570,-500.69524824,0.00035616,3]
[359336336,1745939433581,-400.0,0.00035616,3]
[359336337,1745939433591,-151.0,0.00035616,14]
[359336338,1745939433600,-250.04965159,0.00035616,3]
[359336339,1745939433610,-500.0,0.00035616,3]
[359336340,1745939433620,-168.13950214,0.00035616,3]
[359336341,1745939433630,-186.245263,0.00035616,14]
[359336342,1745939433640,-151.0,0.00035616,14]
[359336343,1745939433650,-400.0,0.00035616,3]
[359336344,1745939433660,-500.0,0.00035616,3]
[359336345,1745939433671,-500.0,0.00035616,3]
[359336346,1745939433681,-500.0,0.00035616,3]
[359336347,1745939433692,-500.0,0.00035616,3]
[359336348,1745939433702,-500.0,0.00035616,3]
[359336349,1745939433722,-726.03,0.00035616,3]
[359336350,1745939433734,-500.0,0.00035616,3]
[359336351,1745939433744,-88.24371079,0.00035616,3]
[359336355,1745939437874,-311.75628921,0.00035616,3]
[359336356,1745939437885,-507.13101537,0.00035616,3]
[359336357,1745939437896,-500.0,0.00035616,3]
[359336358,1745939437905,-500.0,0.00035616,3]
[359336359,1745939437915,-500.0,0.00035616,3]
[359336360,1745939437925,-1147.87,0.00035616,3]
[359336361,1745939437935,-400.0,0.00035616,3]
[359336362,1745939437945,-400.0,0.00035616,3]
[359336363,1745939437954,-500.0,0.00035616,3]
[359336364,1745939437964,-504.30776664,0.00035616,3]
[359336365,1745939437974,-500.0,0.00035616,3]
[359336366,1745939437983,-501.40972087,0.00035616,3]
[359336367,1745939437992,-417.01,0.00035616,3]
[359336368,1745939438002,-400.0,0.00035616,3]
[359336369,1745939438011,-500.0,0.00035616,3]
[359336370,1745939438021,-500.0,0.00035616,2]
[359336371,1745939438030,-400.0,0.00035616,3]
[359336372,1745939438040,-1303.72,0.00035616,3]
[359336373,1745939438049,-1025.16,0.00035616,3]
[359336376,1745939438059,-500.0,0.00035616,3]
[359336379,1745939438069,-500.0,0.00035616,3]
[359336381,1745939438078,-447.4,0.00035616,3]
[359336383,1745939438088,-500.0,0.00035616,3]
[359336384,1745939438097,-151.0,0.00035616,14]
[359336385,1745939438108,-500.0,0.00035616,3]
[359336386,1745939438118,-151.0,0.00035616,14]
[359336387,1745939438128,-400.0,0.00035616,3]
[359336388,1745939438137,-359.4538353,0.00035616,3]
[359336389,1745939438147,-500.0,0.00035616,3]
[359336390,1745939438158,-1000.0,0.00035616,3]
[359336391,1745939438168,-501.4554595,0.00035616,3]
[359336392,1745939438177,-500.0,0.00035616,3]
[359336393,1745939438187,-500.0,0.00035616,3]
[359336394,1745939438197,-500.0,0.00035616,3]
[359336395,1745939438206,-500.0,0.00035616,3]
[359336396,1745939438216,-408.33,0.00035616,3]
[359336397,1745939438226,-400.0,0.00035616,3]
[359336398,1745939438235,-500.0,0.00035616,3]
[359336399,1745939438245,-220.062228,0.00035616,14]
[359336400,1745939438255,-530.68259827,0.00035616,3]
[359336401,1745939438265,-500.0,0.00035616,3]
[359336402,1745939438274,-481.49795034,0.00035616,3]
[359336403,1745939438288,-18.50204966,0.00035616,3]
[359336404,1745939438298,-351.22441916,0.00035616,3]
[359336405,1745939438307,-400.0,0.00035616,3]
[359336406,1745939438317,-320.15092141,0.00035616,3]
[359336407,1745939438333,-179.84907859,0.00035616,3]
[359336408,1745939438342,-165.80535902,0.00035616,3]
[359336409,1745939438360,-234.19464098,0.00035616,3]
[359336410,1745939438370,-500.0,0.00035616,3]
[359336411,1745939438379,-400.0,0.00035616,3]
[359336412,1745939438389,-295.65733479,0.00035616,3]
[359336413,1745939438399,-500.0,0.00035616,3]
[359336414,1745939438409,-505.83,0.00035616,3]
[359336415,1745939438418,-3552.12,0.00035616,3]
[359336416,1745939438427,-400.0,0.00035616,3]
[359336417,1745939438437,-400.0,0.00035616,3]
[359336418,1745939438447,-400.0,0.00035616,3]
[359336419,1745939438457,-500.0,0.00035616,3]
[359336420,1745939438467,-400.0,0.00035616,3]
[359336421,1745939438476,-400.0,0.00035616,3]
[359336422,1745939438487,-500.0,0.00035616,3]
[359336423,1745939438496,-500.0,0.00035616,3]
[359336424,1745939438506,-505.04982139,0.00035616,3]
[359336425,1745939438516,-180.967815,0.00035616,14]
[359336426,1745939438525,-400.0,0.00035616,3]
[359336427,1745939438536,-400.0,0.00035616,3]
[359336428,1745939438546,-500.0,0.00035616,3]
[359336429,1745939438556,-400.0,0.00035616,3]
[359336430,1745939438566,-400.0,0.00035616,3]
[359336431,1745939438576,-500.0,0.00035616,3]
[359336432,1745939438586,-1077.66,0.00035616,3]
[359336433,1745939438595,-2258.18,0.00035616,3]
[359336434,1745939438607,-500.0,0.00035616,3]
[359336435,1745939438616,-207.453278,0.00035616,14]
[359336436,1745939438626,-181.0433346,0.00035616,3]
[359336437,1745939438636,-400.0,0.00035616,3]
[359336438,1745939438645,-400.0,0.00035616,3]
[359336439,1745939438655,-400.0,0.00035616,3]
[359336440,1745939438665,-400.0,0.00035616,3]
[359336441,1745939438674,-501.36743639,0.00035616,3]
[359336442,1745939438684,-500.0,0.00035616,3]
[359336443,1745939438694,-400.0,0.00035616,3]
[359336444,1745939438703,-400.0,0.00035616,3]
[359336445,1745939438713,-400.0,0.00035616,3]
[359336446,1745939438725,-500.0,0.00035616,3]
[359336447,1745939438735,-400.0,0.00035616,3]
[359336448,1745939438744,-500.0,0.00035616,3]
[359336449,1745939438754,-500.0,0.00035616,3]
[359336450,1745939438763,-400.0,0.00035616,3]
[359336451,1745939438773,-500.0,0.00035616,3]
[359336452,1745939438783,-400.0,0.00035616,3]
[359336453,1745939438793,-400.0,0.00035616,3]
[359336454,1745939438804,-500.0,0.00035616,13]
[359336455,1745939438814,-1491.86,0.00035616,3]
[359336456,1745939438823,-400.0,0.00035616,3]
[359336457,1745939438833,-400.0,0.00035616,3]
[359336458,1745939438843,-400.0,0.00035616,3]
[359336459,1745939438854,-400.0,0.00035616,3]
[359336460,1745939438864,-500.0,0.00035616,3]
[359336461,1745939438874,-526.38953586,0.00035616,3]
[359336462,1745939438883,-241.8093857,0.00035616,3]
[359336463,1745939438893,-861.67,0.00035616,3]
[359336464,1745939438902,-323.96873617,0.00035616,3]
[359336465,1745939438917,-176.03126383,0.00035616,3]
[359336466,1745939438927,-500.0,0.00035616,3]
[359336467,1745939438936,-500.0,0.00035616,3]
[359336468,1745939438946,-500.0,0.00035616,3]
[359336469,1745939438957,-400.0,0.00035616,3]
[359336470,1745939438966,-1103.31,0.00035616,3]
[359336471,1745939438976,-500.0,0.00035616,3]
[359336472,1745939438985,-400.0,0.00035616,3]
[359336473,1745939438995,-787.61,0.00035616,3]
[359336474,1745939439004,-400.0,0.00035616,3]
[359336475,1745939439013,-504.62522144,0.00035616,3]
[359336476,1745939439024,-717.37,0.00035616,3]
[359336477,1745939439033,-500.0,0.00035616,3]
[359336478,1745939439043,-400.0,0.00035616,3]
[359336479,1745939439053,-514.39,0.00035616,3]
[359336480,1745939439062,-400.0,0.00035616,3]
[359336481,1745939439072,-500.0,0.00035616,3]
[359336482,1745939439081,-510.91676991,0.00035616,3]
[359336483,1745939439091,-400.0,0.00035616,3]
[359336484,1745939439101,-400.0,0.00035616,3]
[359336485,1745939439110,-400.0,0.00035616,3]
[359336486,1745939439119,-792.45,0.00035616,3]
[359336487,1745939439129,-500.0,0.00035616,3]
[359336488,1745939439138,-188.90879023,0.00035616,3]
[359336489,1745939439150,-211.09120977,0.00035616,3]
[359336490,1745939439159,-500.0,0.00035616,3]
[359336491,1745939439169,-400.0,0.00035616,3]
[359336492,1745939439178,-393.75711286,0.00035616,3]
[359336493,1745939439188,-359.14931182,0.00035616,3]
[359336514,1745939440303,-461.69512936,0.00035616,2]
[359336533,1745939442975,-5344.1772408,0.00035616,2]
[359336541,1745939445886,-284.262,0.00035616,2]
[359336543,1745939446012,-403.0,0.00035267,2]
[359336544,1745939446022,-2487.96004231,0.00035616,2]
[359336545,1745939446034,-789.8158653,0.00035616,2]
[359336546,1745939446050,-11223.05720381,0.00035616,2]
[359336547,1745939446060,-40.85068818,0.00035616,3]
[359336548,1745939446069,-521.01,0.00035616,3]
[359336549,1745939446079,-400.0,0.00035616,3]
[359336551,1745939446088,-500.0,0.00035616,3]
[359336552,1745939446097,-1230.78,0.00035616,3]
[359336553,1745939446108,-300.0,0.00035616,3]
[359336554,1745939446117,-500.0,0.00035616,3]
[359336555,1745939446127,-400.0,0.00035616,3]
[359336556,1745939446138,-500.0,0.00035616,3]
[359336557,1745939446148,-400.0,0.00035616,3]
[359336558,1745939446157,-400.0,0.00035616,3]
[359336559,1745939446166,-400.0,0.00035616,3]
[359336560,1745939446175,-500.0,0.00035616,3]
[359336561,1745939446185,-400.0,0.00035616,3]
[359336562,1745939446195,-156.591831,0.00035616,3]
[359336563,1745939446204,-400.0,0.00035616,3]
[359336564,1745939446213,-500.0,0.00035616,3]
[359336565,1745939446223,-500.0,0.00035616,3]
[359336566,1745939446232,-400.0,0.00035616,3]
[359336567,1745939446242,-1060.73,0.00035616,3]
[359336568,1745939446251,-400.0,0.00035616,3]
[359336569,1745939446260,-500.0,0.00035616,3]
[359336570,1745939446270,-400.0,0.00035616,3]
[359336571,1745939446280,-500.0,0.00035616,3]
[359336572,1745939446290,-501.3554026,0.00035616,3]
[359336573,1745939446299,-400.0,0.00035616,3]
[359336574,1745939446309,-500.0,0.00035616,3]
[359336575,1745939446318,-400.0,0.00035616,3]
[359336576,1745939446328,-400.0,0.00035616,3]
[359336577,1745939446338,-400.0,0.00035616,3]
[359336578,1745939446347,-501.01614136,0.00035616,3]
[359336579,1745939446357,-400.0,0.00035616,3]
[359336580,1745939446366,-203.10042527,0.00035616,3]
[359336581,1745939446376,-400.0,0.00035616,3]
[359336582,1745939446386,-943.97,0.00035616,3]
[359336583,1745939446395,-1011.88,0.00035616,3]
[359336584,1745939446405,-500.0,0.00035616,3]
[359336585,1745939446414,-400.0,0.00035616,3]
[359336586,1745939446424,-400.0,0.00035616,3]
[359336587,1745939446433,-400.0,0.00035616,3]
[359336588,1745939446443,-500.0,0.00035616,3]
[359336589,1745939446452,-400.0,0.00035616,3]
[359336590,1745939446462,-1000.0,0.00035616,3]
[359336591,1745939446471,-400.0,0.00035616,3]
[359336592,1745939446480,-400.0,0.00035616,3]
[359336593,1745939446490,-400.0,0.00035616,3]
[359336594,1745939446500,-400.0,0.00035616,3]
[359336595,1745939446510,-400.0,0.00035616,3]
[359336596,1745939446519,-505.89638131,0.00035616,3]
[359336597,1745939446529,-400.0,0.00035616,3]
[359336598,1745939446539,-500.0,0.00035616,3]
[359336599,1745939446549,-400.0,0.00035616,3]
[359336600,1745939446558,-400.0,0.00035616,3]
[359336601,1745939446568,-400.0,0.00035616,3]
[359336602,1745939446577,-400.0,0.00035616,3]
[359336603,1745939446587,-500.0,0.00035616,3]
[359336604,1745939446768,-500.0,0.00035616,3]
[359336605,1745939446779,-400.0,0.00035616,3]
[359336606,1745939446788,-400.0,0.00035616,3]
[359336607,1745939446798,-400.0,0.00035616,3]
[359336608,1745939446808,-400.0,0.00035616,3]
[359336609,1745939446818,-151.0,0.00035616,14]
[359336610,1745939446827,-400.0,0.00035616,3]
[359336611,1745939446836,-151.0,0.00035616,14]
[359336612,1745939446845,-151.0,0.00035616,14]
[359336613,1745939446854,-400.0,0.00035616,3]
[359336614,1745939446863,-400.0,0.00035616,3]
[359336615,1745939446872,-500.0,0.00035616,3]
[359336616,1745939446882,-510.96321179,0.00035616,3]
[359336617,1745939446892,-501.38540952,0.00035616,3]
[359336618,1745939446900,-500.0,0.00035616,3]
[359336619,1745939446909,-691.68,0.00035616,3]
[359336620,1745939446918,-500.0,0.00035616,3]
[359336621,1745939446927,-402.63,0.00035616,3]
[359336622,1745939446936,-500.0,0.00035616,3]
[359336623,1745939446945,-400.0,0.00035616,3]
[359336624,1745939446955,-241.99508724,0.00035616,3]
[359336625,1745939446964,-439.8,0.00035616,3]
[359336626,1745939446974,-400.0,0.00035616,3]
[359336627,1745939446984,-500.0,0.00035616,3]
[359336628,1745939446994,-434.46404568,0.00035616,3]
[359336629,1745939447003,-400.0,0.00035616,3]
[359336630,1745939447012,-233.10375684,0.00035616,3]
[359336631,1745939447021,-400.0,0.00035616,3]
[359336632,1745939447031,-500.0,0.00035616,3]
[359336633,1745939447040,-504.40342907,0.00035616,3]
[359336634,1745939447050,-400.0,0.00035616,3]
[359336635,1745939447059,-500.0,0.00035616,3]
[359336636,1745939447069,-500.0,0.00035616,3]
[359336637,1745939447078,-400.0,0.00035616,3]
[359336638,1745939447087,-400.0,0.00035616,3]
[359336639,1745939447097,-500.0,0.00035616,3]
[359336640,1745939447107,-500.0,0.00035616,3]
[359336641,1745939447116,-500.0,0.00035616,3]
[359336642,1745939447125,-651.56,0.00035616,3]
[359336643,1745939447135,-226.32817536,0.00035616,3]
[359336644,1745939447146,-500.0,0.00035616,3]
[359336645,1745939447157,-949.92,0.00035616,3]
[359336646,1745939447166,-500.0,0.00035616,3]
[359336647,1745939447176,-675.48,0.00035616,3]
[359336648,1745939447185,-500.0,0.00035616,3]
[359336649,1745939447194,-400.0,0.00035616,3]
[359336650,1745939447204,-500.0,0.00035616,3]
[359336651,1745939447213,-500.0,0.00035616,3]
[359336652,1745939447222,-956.19,0.00035616,3]
[359336653,1745939447231,-500.0,0.00035616,3]
[359336654,1745939447241,-489.59,0.00035616,3]
[359336655,1745939447251,-500.0,0.00035616,3]
[359336656,1745939447260,-500.0,0.00035616,3]
[359336657,1745939447269,-931.69,0.00035616,3]
[359336658,1745939447279,-400.0,0.00035616,3]
[359336659,1745939447290,-500.0,0.00035616,3]
[359336660,1745939447300,-1094.36,0.00035616,3]
[359336661,1745939447310,-400.0,0.00035616,3]
[359336662,1745939447319,-201.52794115,0.00035616,3]
[359336663,1745939447328,-500.0,0.00035616,3]
[359336664,1745939447338,-500.0,0.00035616,3]
[359336665,1745939447347,-419.05,0.00035616,3]
[359336666,1745939447357,-604.79,0.00035616,3]
[359336667,1745939447366,-400.0,0.00035616,3]
[359336668,1745939447376,-500.0,0.00035616,3]
[359336669,1745939447385,-400.0,0.00035616,3]
[359336670,1745939447394,-503.72669785,0.00035616,3]
[359336671,1745939447403,-420.54,0.00035616,3]
[359336672,1745939447413,-500.0,0.00035616,3]
[359336673,1745939447422,-400.0,0.00035616,3]
[359336674,1745939447431,-469.03,0.00035616,3]
[359336675,1745939447440,-515.58,0.00035616,3]
[359336676,1745939447450,-400.0,0.00035616,3]
[359336677,1745939447459,-353.65622271,0.00035616,3]
[359336678,1745939447468,-400.0,0.00035616,3]
[359336679,1745939447478,-400.0,0.00035616,3]
[359336680,1745939447487,-400.0,0.00035616,3]
[359336681,1745939447496,-2163.78,0.00035616,3]
[359336682,1745939447506,-409.75,0.00035616,3]
[359336683,1745939447515,-400.0,0.00035616,3]
[359336684,1745939447524,-400.0,0.00035616,3]
[359336685,1745939447534,-1343.32,0.00035616,3]
[359336686,1745939447543,-400.0,0.00035616,3]
[359336687,1745939447553,-500.0,0.00035616,3]
[359336688,1745939447562,-500.0,0.00035616,3]
[359336689,1745939447572,-585.24,0.00035616,3]
[359336690,1745939447582,-500.0,0.00035616,3]
[359336691,1745939447591,-400.0,0.00035616,3]
[359336692,1745939447600,-616.06,0.00035616,3]
[359336693,1745939447611,-400.0,0.00035616,3]
[359336694,1745939447621,-478.91,0.00035616,3]
[359336695,1745939447630,-1352.18,0.00035616,3]
[359336696,1745939447639,-500.0,0.00035616,3]
[359336697,1745939447649,-400.0,0.00035616,3]
[359336698,1745939447658,-500.0,0.00035616,3]
[359336699,1745939447668,-400.0,0.00035616,3]
[359336700,1745939447677,-151.0,0.00035616,14]
[359336701,1745939447686,-151.0,0.00035616,14]
[359336702,1745939447695,-501.09344392,0.00035616,3]
[359336703,1745939447705,-500.0,0.00035616,3]
[359336704,1745939447715,-400.0,0.00035616,3]
[359336705,1745939447727,-533.66,0.00035616,3]
[359336706,1745939447737,-400.0,0.00035616,3]
[359336707,1745939447747,-500.0,0.00035616,3]
[359336708,1745939447756,-1058.71,0.00035616,3]
[359336709,1745939447766,-501.01811364,0.00035616,3]
[359336710,1745939447776,-4241.34,0.00035616,3]
[359336711,1745939447786,-151.0,0.00035616,14]
[359336712,1745939447796,-151.0,0.00035616,14]
[359336713,1745939447806,-151.0,0.00035616,14]
[359336714,1745939447816,-151.0,0.00035616,14]
[359336715,1745939447825,-151.0,0.00035616,14]
[359336716,1745939447835,-151.0,0.00035616,14]
[359336717,1745939447845,-151.0,0.00035616,14]
[359336718,1745939447856,-1169.57,0.00035616,3]
[359336719,1745939447866,-151.0,0.00035616,14]
[359336720,1745939447876,-400.0,0.00035616,3]
[359336721,1745939447886,-151.0,0.00035616,14]
[359336722,1745939447896,-151.0,0.00035616,14]
[359336723,1745939447906,-151.0,0.00035616,14]
[359336724,1745939447915,-400.0,0.00035616,3]
[359336725,1745939447925,-151.0,0.00035616,14]
[359336726,1745939447935,-151.0,0.00035616,14]
[359336727,1745939447945,-151.0,0.00035616,14]
[359336728,1745939447954,-191.167566,0.00035616,14]
[359336729,1745939447964,-447.64,0.00035616,3]
[359336730,1745939447975,-500.88991179,0.00035616,3]
[359336731,1745939447985,-400.0,0.00035616,3]
[359336732,1745939447994,-442.6904097,0.00035616,3]
[359336733,1745939448003,-525.27254891,0.00035616,3]
[359336734,1745939448012,-1894.21,0.00035616,3]
[359336735,1745939448022,-500.0,0.00035616,3]
[359336736,1745939448032,-500.0,0.00035616,3]
[359336737,1745939448041,-400.0,0.00035616,3]
[359336738,1745939448051,-400.0,0.00035616,3]
[359336739,1745939448060,-500.0,0.00035616,3]
[359336740,1745939448069,-400.0,0.00035616,3]
[359336741,1745939448079,-918.92,0.00035616,3]
[359336742,1745939448088,-501.65401536,0.00035616,3]
[359336743,1745939448097,-1715.61,0.00035616,3]
[359336744,1745939448109,-400.0,0.00035616,3]
[359336745,1745939448118,-500.0,0.00035616,3]
[359336746,1745939448128,-530.95210091,0.00035616,3]
[359336747,1745939448137,-506.12126324,0.00035616,3]
[359336748,1745939448147,-500.0,0.00035616,3]
[359336749,1745939448157,-400.0,0.00035616,3]
[359336750,1745939448167,-500.0,0.00035616,3]
[359336751,1745939448176,-400.0,0.00035616,3]
[359336752,1745939448186,-400.0,0.00035616,3]
[359336753,1745939448195,-707.53,0.00035616,3]
[359336754,1745939448205,-500.0,0.00035616,3]
[359336755,1745939448214,-467.35,0.00035616,3]
[359336756,1745939448224,-2404.99,0.00035616,3]
[359336757,1745939448233,-400.0,0.00035616,3]
[359336758,1745939448243,-400.0,0.00035616,3]
[359336759,1745939448252,-322.91226145,0.00035616,3]
[359336851,1745940523302,-163.048207,0.0002,2]
[359336884,1745940631990,-850.0,0.00019999,2]
[359336886,1745940632000,-300.0,0.00019999,2]
[359336888,1745940632009,-9259.8282348,0.0002,2]
[359336889,1745940632020,-52658.62766085,0.0002,2]
[359336890,1745940632029,-203.27256102,0.000259,6]
[359336891,1745940632038,-203.272561,0.00026614,6]
[359336892,1745940632047,-203.272561,0.00027329,7]
[359336893,1745940632055,-163.048207,0.00027397,2]
[359336894,1745940632065,-313.35099139,0.00028,10]
[359336895,1745940632076,-203.272561,0.00028043,7]
[359336896,1745940632085,-155.0,0.00028544,2]
[359336897,1745940632094,-203.272561,0.00028757,8]
[359336898,1745940632103,-203.272561,0.00029471,8]
[359336899,1745940632113,-203.272561,0.00030186,9]
[359336900,1745940632122,-203.272561,0.000309,9]
[359336901,1745940632131,-203.272561,0.00031614,10]
[359336902,1745940632140,-203.272561,0.00032329,10]
[359336903,1745940632150,-71.11627608,0.00032896,2]
[359337045,1745940640395,-593.90122973,0.00032896,2]
[359337170,1745940644196,-175.71733206,0.00032896,2]
[359337173,1745940644206,-420.71364071,0.00032898,2]
[359337175,1745940644216,-160.0,0.00032898,2]
[359337178,1745940644225,-203.272561,0.00033043,11]
[359337180,1745940644235,-235.961928,0.00033123,2]
[359337182,1745940644244,-203.272561,0.00033757,11]
[359337185,1745940644263,-347.94514,0.00033835,4]
[359337187,1745940644274,-500.0,0.00033999,2]
[359337189,1745940644283,-500.0,0.00033999,2]
[359337191,1745940644293,-500.0,0.00033999,2]
[359337193,1745940644303,-500.0,0.00033999,2]
[359337195,1745940644313,-500.0,0.00033999,2]
[359337197,1745940644322,-10108.80603971,0.00034,2]
[359337316,1745940646213,-1664.14401129,0.00034,2]
[359337318,1745940646223,-203.272561,0.00034471,11]
[359337320,1745940646234,-153.0,0.00034795,30]
[359337321,1745940646246,-153.0,0.00034795,30]
[359337322,1745940646257,-106.58340765,0.0003499,3]
[359337323,1745940646269,-255.30659235,0.0003499,3]
[359337324,1745940646279,-180.94,0.0003499,3]
[359337325,1745940646289,-542.86,0.0003499,3]
[359337326,1745940646299,-111795.78371845,0.00035,2]
[359337327,1745940646309,-459.36523229,0.00035032,30]
[359337328,1745940646320,-153.0,0.00035068,30]
[359337329,1745940646330,-203.272561,0.00035186,12]
[359337330,1745940646341,-2245.0,0.00035267,2]
[359337331,1745940646351,-403.0,0.00035267,2]
[359337332,1745940646363,-157.6610457,0.00035342,30]
[359337333,1745940646374,-500.0,0.0003539,10]
[359337334,1745940646386,-500.0,0.00035443,7]
[359337335,1745940646397,-500.0,0.00035443,7]
[359337336,1745940646408,-584.67078407,0.00035443,7]
[359337337,1745940646419,-574.68113961,0.00035443,7]
[359337338,1745940646430,-319.80884724,0.00035443,7]
[359337339,1745940646441,-27753.45154752,0.00035444,2]
[359337388,1745941832171,-163.048207,0.00027397,2]
[359337390,1745941832181,-160.0,0.00031484,2]
[359337393,1745941832190,-160.0,0.00031486,2]
[359337394,1745941832199,-300.0,0.00031488,2]
[359337395,1745941832208,-300.0,0.00031488,3]
[359337396,1745941832218,-6523.9997029,0.00031489,2]
[359337397,1745941832228,-207.6005091,0.000319,10]
[359337398,1745941832238,-207.60050904,0.000329,10]
[359337399,1745941832248,-5000.0,0.0003309,2]
[359337400,1745941832257,-5000.0,0.0003309,2]
[359337401,1745941832267,-5000.0,0.0003309,2]
[359337403,1745941832276,-5000.0,0.0003309,2]
[359337405,1745941832286,-5000.0,0.0003309,2]
[359337407,1745941832295,-5000.0,0.0003309,2]
[359337408,1745941832305,-4751.05674446,0.00033638,2]
[359337409,1745941832317,-248.94325554,0.00033638,2]
[359337410,1745941832326,-250.0,0.00033735,2]
[359337411,1745941832336,-1000.0,0.00033735,2]
[359337412,1745941832346,-465.5731369,0.00033835,4]
[359337413,1745941832355,-207.60050904,0.000339,11]
[359337414,1745941832365,-421.1409203,0.00033964,2]
[359337415,1745941832374,-160.0,0.00033966,2]
[359337416,1745941832384,-153.0,0.00033973,30]
[359337417,1745941832393,-153.0,0.00033973,30]
[359337418,1745941832402,-5000.0,0.00034186,2]
[359337419,1745941832412,-5000.0,0.00034734,2]
[359337420,1745941832421,-153.0,0.00034795,30]
[359337421,1745941832431,-153.0,0.00034795,30]
[359337422,1745941832441,-207.60050904,0.000349,12]
[359337423,1745941832450,-625.79533391,0.00035,2]
[359337424,1745941833464,2500.0,0.00027397,30]
[359337440,1745941838178,-1425.38466609,0.00035,2]
[359337441,1745941838188,-3053.02377139,0.00035,10]
[359337442,1745941838248,-28.61922861,0.00035,10]
[359337443,1745941838258,-153.0,0.00035068,30]
[359337444,1745941838267,-153.0,0.00035068,30]
[359337445,1745941838277,-318.0053917,0.00035117,2]